fUSD/lending_fUSD_20250610
["ID","MTS","AMOUNT","RATE_DAILY","PERIOD"]
[365187446,1749525068796,-490.0,0.00016931,2]
[365187447,1749525068805,-490.0,0.00016931,2]
[365187448,1749525068815,-602.55819011,0.00016931,2]
[365187449,1749525068825,-490.0,0.00016931,2]
[365187450,1749525068834,-490.0,0.00016931,2]
[365187451,1749525068844,-490.0,0.00016931,2]
[365187452,1749525068853,-490.0,0.00016931,2]
[365187453,1749525068862,-490.0,0.00016931,2]
[365187454,1749525068872,-490.0,0.00016931,2]
[365187455,1749525068881,-614.43,0.00016931,2]
[365187456,1749525068891,-490.0,0.00016931,2]
[365187457,1749525068901,-490.0,0.00016931,2]
[365187458,1749525068910,-490.0,0.00016931,2]
[365187459,1749525068920,-530.4461335,0.00016931,2]
[365187460,1749525068930,-490.0,0.00016931,2]
[365187461,1749525068939,-490.0,0.00016931,2]
[365187462,1749525068949,-490.0,0.00016931,2]
[365187463,1749525068958,-490.0,0.00016931,2]
[365187464,1749525068968,-490.0,0.00016931,2]
[365187465,1749525068978,-490.0,0.00016931,2]
[365187466,1749525068987,-862.63,0.00016931,2]
[365187467,1749525068997,-490.0,0.00016931,2]
[365187468,1749525069007,-2092.76,0.00016931,2]
[365187469,1749525069017,-490.0,0.00016931,2]
[365187470,1749525069026,-586.05704339,0.00016931,2]
[365187471,1749525069036,-490.0,0.00016931,2]
[365187472,1749525069046,-490.0,0.00016931,2]
[365187473,1749525069055,-490.0,0.00016931,2]
[365187474,1749525069065,-490.0,0.00016931,2]
[365187475,1749525069075,-490.0,0.00016931,2]
[365187476,1749525069084,-490.0,0.00016931,2]
[365187477,1749525069094,-490.0,0.00016931,2]
[365187478,1749525069103,-490.0,0.00016931,2]
[365187479,1749525069113,-486.93096417,0.00016931,2]
[365187480,1749525069123,-490.0,0.00016931,2]
[365187481,1749525069132,-490.0,0.00016931,2]
[365187482,1749525069142,-490.0,0.00016931,2]
[365187483,1749525069151,-490.0,0.00016931,2]
[365187484,1749525069161,-597.22,0.00016931,2]
[365187485,1749525069170,-578.9178733,0.00016931,2]
[365187486,1749525069180,-495.44486679,0.00016931,2]
[365187487,1749525069190,-490.0,0.00016931,2]
[365187488,1749525069199,-490.0,0.00016931,2]
[365187489,1749525069209,-490.0,0.00016931,2]
[365187490,1749525069219,-490.0,0.00016931,2]
[365187491,1749525069228,-490.0,0.00016931,2]
[365187492,1749525069238,-503.13883298,0.00016931,2]
[365187493,1749525069249,-474.34443228,0.00016931,2]
[365187494,1749525069258,-490.0,0.00016931,2]
[365187495,1749525069268,-490.0,0.00016931,2]
[365187496,1749525069277,-476.97282068,0.00016931,2]
[365187497,1749525069286,-490.0,0.00016931,2]
[365187498,1749525069297,-452.91257563,0.00016931,2]
[365187499,1749525069306,-490.0,0.00016931,2]
[365187500,1749525069315,-490.0,0.00016931,2]
[365187501,1749525069323,-490.0,0.00016931,2]
[365187502,1749525069332,-490.0,0.00016931,2]
[365187503,1749525069341,-502.15050195,0.00016931,2]
[365187504,1749525069350,-490.0,0.00016931,2]
[365187505,1749525069359,-490.0,0.00016931,2]
[365187506,1749525069368,-490.0,0.00016931,2]
[365187507,1749525069377,-490.0,0.00016931,2]
[365187508,1749525069386,-490.0,0.00016931,2]
[365187509,1749525069396,-490.0,0.00016931,2]
[365187510,1749525069405,-490.0,0.00016931,2]
[365187511,1749525069415,-490.0,0.00016931,2]
[365187512,1749525069424,-496.63,0.00016931,2]
[365187513,1749525069434,-490.0,0.00016931,2]
[365187514,1749525069443,-490.0,0.00016931,2]
[365187515,1749525069452,-490.0,0.00016931,2]
[365187516,1749525069461,-490.0,0.00016931,2]
[365187517,1749525069471,-490.0,0.00016931,2]
[365187518,1749525069482,-490.0,0.00016931,2]
[365187519,1749525069491,-527.75767254,0.00016931,2]
[365187520,1749525069501,-490.0,0.00016931,2]
[365187521,1749525069511,-490.0,0.00016931,2]
[365187522,1749525069520,-490.0,0.00016931,2]
[365187523,1749525069529,-490.0,0.00016931,2]
[365187524,1749525069539,-490.0,0.00016931,2]
[365187525,1749525069548,-519.00792323,0.00016931,2]
[365187526,1749525069558,-472.99743863,0.00016931,2]
[365187527,1749525069568,-490.0,0.00016931,2]
[365187528,1749525069577,-490.0,0.00016931,2]
[365187529,1749525069589,-490.0,0.00016931,2]
[365187530,1749525069599,-490.0,0.00016931,2]
[365187531,1749525069609,-490.0,0.00016931,2]
[365187532,1749525069618,-473.63698111,0.00016931,2]
[365187533,1749525069628,-490.0,0.00016931,2]
[365187534,1749525069637,-490.0,0.00016931,2]
[365187535,1749525069647,-256.27210857,0.00016931,2]
[365187536,1749525069656,-565.28,0.00016931,2]
[365187537,1749525069667,-490.0,0.00016931,2]
[365187538,1749525069676,-454.5541879,0.00016931,2]
[365187539,1749525069686,-490.0,0.00016931,2]
[365187540,1749525069695,-612.24953588,0.00016931,2]
[365187541,1749525069704,-490.0,0.00016931,2]
[365187542,1749525069713,-490.0,0.00016931,2]
[365187543,1749525069722,-490.0,0.00016931,2]
[365187544,1749525069731,-490.0,0.00016931,2]
[365187545,1749525069741,-490.0,0.00016931,2]
[365187546,1749525069750,-490.0,0.00016931,2]
[365187547,1749525069760,-490.0,0.00016931,2]
[365187548,1749525069769,-490.0,0.00016931,2]
[365187549,1749525069779,-490.0,0.00016931,2]
[365187550,1749525069788,-490.0,0.00016931,2]
[365187551,1749525069798,-489.44309259,0.00016931,2]
[365187552,1749525069807,-490.0,0.00016931,2]
[365187553,1749525069817,-460.48086919,0.00016931,2]
[365187554,1749525069827,-474.39418177,0.00016931,2]
[365187555,1749525069836,-490.0,0.00016931,2]
[365187556,1749525069845,-490.0,0.00016931,2]
[365187557,1749525069855,-490.0,0.00016931,2]
[365187558,1749525069864,-490.0,0.00016931,2]
[365187559,1749525069873,-463.33792881,0.00016931,2]
[365187560,1749525069882,-490.0,0.00016931,2]
[365187561,1749525069891,-481.03961552,0.00016931,2]
[365187562,1749525069900,-490.0,0.00016931,2]
[365187563,1749525069910,-450.0,0.00016931,2]
[365187564,1749525069919,-490.0,0.00016931,2]
[365187565,1749525069928,-490.0,0.00016931,2]
[365187566,1749525069938,-480.94427889,0.00016931,2]
[365187567,1749525069949,-490.0,0.00016931,2]
[365187568,1749525069958,-490.0,0.00016931,2]
[365187569,1749525069967,-490.0,0.00016931,2]
[365187570,1749525069976,-490.0,0.00016931,2]
[365187571,1749525069985,-537.96,0.00016931,2]
[365187572,1749525069995,-490.42436823,0.00016931,2]
[365187573,1749525070004,-915.11,0.00016931,2]
[365187574,1749525070013,-490.0,0.00016931,2]
[365187575,1749525070022,-490.0,0.00016931,2]
[365187576,1749525070032,-490.0,0.00016931,2]
[365187577,1749525070041,-490.0,0.00016931,2]
[365187578,1749525070052,-490.0,0.00016931,2]
[365187579,1749525070062,-556.18,0.00016931,2]
[365187580,1749525070072,-490.0,0.00016931,2]
[365187581,1749525070084,-490.0,0.00016931,2]
[365187582,1749525070094,-490.0,0.00016931,2]
[365187583,1749525070105,-490.0,0.00016931,2]
[365187584,1749525070116,-490.0,0.00016931,2]
[365187585,1749525070126,-535.23,0.00016931,2]
[365187586,1749525070137,-490.0,0.00016931,2]
[365187587,1749525070147,-490.0,0.00016931,2]
[365187588,1749525070156,-490.0,0.00016931,2]
[365187589,1749525070167,-3774.302836,0.00016931,2]
[365187590,1749525070177,-490.0,0.00016931,2]
[365187591,1749525070189,-490.0,0.00016931,2]
[365187592,1749525070200,-490.0,0.00016931,2]
[365187593,1749525070210,-490.0,0.00016931,2]
[365187594,1749525070220,-2294.03,0.00016931,2]
[365187595,1749525070229,-722.61,0.00016931,2]
[365187596,1749525070239,-490.0,0.00016931,2]
[365187597,1749525070249,-490.0,0.00016931,2]
[365187598,1749525070259,-490.0,0.00016931,2]
[365187599,1749525070268,-490.0,0.00016931,2]
[365187600,1749525070278,-490.0,0.00016931,2]
[365187601,1749525070287,-490.0,0.00016931,2]
[365187602,1749525070297,-490.0,0.00016931,2]
[365187603,1749525070306,-757.61,0.00016931,2]
[365187604,1749525070315,-490.0,0.00016931,2]
[365187605,1749525070324,-490.0,0.00016931,2]
[365187606,1749525070334,-490.0,0.00016931,2]
[365187607,1749525070344,-490.0,0.00016931,2]
[365187608,1749525070354,-450.0,0.00016931,2]
[365187609,1749525070364,-490.0,0.00016931,2]
[365187610,1749525070374,-490.0,0.00016931,2]
[365187611,1749525070385,-584.91755418,0.00016931,2]
[365187612,1749525070394,-358.68702256,0.00016931,2]
[365187613,1749525070406,-490.0,0.00016931,2]
[365187614,1749525070417,-490.0,0.00016931,2]
[365187615,1749525070427,-490.0,0.00016931,2]
[365187616,1749525070437,-1761.99,0.00016931,2]
[365187617,1749525070447,-498.01,0.00016931,2]
[365187618,1749525070456,-490.0,0.00016931,2]
[365187619,1749525070466,-490.0,0.00016931,2]
[365187620,1749525070476,-490.0,0.00016931,2]
[365187621,1749525070485,-626.78,0.00016931,2]
[365187622,1749525070495,-490.0,0.00016931,2]
[365187623,1749525070505,-2487.15,0.00016931,2]
[365187624,1749525070515,-490.0,0.00016931,2]
[365187625,1749525070524,-490.0,0.00016931,2]
[365187626,1749525070534,-490.0,0.00016931,2]
[365187627,1749525070544,-490.0,0.00016931,2]
[365187628,1749525070554,-490.0,0.00016931,2]
[365187629,1749525070564,-490.0,0.00016931,2]
[365187630,1749525070574,-490.0,0.00016931,2]
[365187631,1749525070585,-490.0,0.00016931,2]
[365187632,1749525070597,-490.0,0.00016931,2]
[365187633,1749525070608,-996.35,0.00016931,2]
[365187634,1749525070617,-490.0,0.00016931,2]
[365187635,1749525070627,-591.43,0.00016931,2]
[365187636,1749525070638,-426.44184807,0.00016931,2]
[365187637,1749525070648,-490.0,0.00016931,2]
[365187638,1749525070660,-490.0,0.00016931,2]
[365187639,1749525070670,-185.97013829,0.00016931,2]
[365187640,1749525070681,-553.91,0.00016931,2]
[365187641,1749525070691,-490.0,0.00016931,2]
[365187642,1749525070700,-490.0,0.00016931,2]
[365187643,1749525070710,-490.0,0.00016931,2]
[365187644,1749525070719,-490.0,0.00016931,2]
[365187645,1749525070729,-490.0,0.00016931,2]
[365187646,1749525070739,-490.0,0.00016931,2]
[365187647,1749525070749,-490.0,0.00016931,2]
[365187648,1749525070758,-490.0,0.00016931,2]
[365187649,1749525070768,-490.0,0.00016931,2]
[365187650,1749525070778,-442.69829572,0.00016931,2]
[365187651,1749525070789,-490.0,0.00016931,2]
[365187652,1749525070799,-490.0,0.00016931,2]
[365187653,1749525070809,-490.0,0.00016931,2]
[365187654,1749525070818,-490.0,0.00016931,2]
[365187655,1749525070828,-440.59967418,0.00016931,2]
[365187656,1749525070838,-673.4,0.00016931,2]
[365187657,1749525070848,-490.0,0.00016931,2]
[365187658,1749525070858,-274.22398125,0.00016931,2]
[365187659,1749525070867,-490.0,0.00016931,2]
[365187660,1749525070877,-490.0,0.00016931,2]
[365187661,1749525070887,-490.0,0.00016931,2]
[365187662,1749525070898,-595.43,0.00016931,2]
[365187663,1749525070907,-490.0,0.00016931,2]
[365187664,1749525070917,-490.0,0.00016931,2]
[365187665,1749525070987,-490.0,0.00016931,2]
[365187666,1749525070997,-1580.0,0.00016931,2]
[365187667,1749525071007,-3953.88,0.00016931,2]
[365187668,1749525071017,-605.59,0.00016931,2]
[365187669,1749525071027,-490.0,0.00016931,2]
[365187670,1749525071036,-490.0,0.00016931,2]
[365187671,1749525071045,-388.04711032,0.00016931,2]
[365187672,1749525071055,-400.38659393,0.00016931,2]
[365187673,1749525071065,-490.0,0.00016931,2]
[365187674,1749525071074,-490.0,0.00016931,2]
[365187675,1749525071084,-490.0,0.00016931,2]
[365187676,1749525071093,-490.0,0.00016931,2]
[365187677,1749525071103,-490.0,0.00016931,2]
[365187678,1749525071114,-490.0,0.00016931,2]
[365187679,1749525071124,-490.0,0.00016931,2]
[365187680,1749525071134,-1687.14,0.00016931,2]
[365187681,1749525071144,-490.0,0.00016931,2]
[365187682,1749525071153,-490.0,0.00016931,2]
[365187683,1749525071163,-490.0,0.00016931,2]
[365187684,1749525071173,-490.0,0.00016931,2]
[365187685,1749525071182,-835.39,0.00016931,2]
[365187686,1749525071192,-490.0,0.00016931,2]
[365187687,1749525071202,-490.0,0.00016931,2]
[365187688,1749525071212,-490.0,0.00016931,2]
[365187689,1749525071222,-490.0,0.00016931,2]
[365187690,1749525071232,-490.0,0.00016931,2]
[365187691,1749525071242,-988.78,0.00016931,2]
[365187692,1749525071251,-509.02,0.00016931,2]
[365187693,1749525071261,-490.0,0.00016931,2]
[365187694,1749525071270,-490.0,0.00016931,2]
[365187695,1749525071280,-490.0,0.00016931,2]
[365187696,1749525071289,-490.0,0.00016931,2]
[365187697,1749525071299,-520.99,0.00016931,2]
[365187698,1749525071309,-490.0,0.00016931,2]
[365187699,1749525071318,-490.0,0.00016931,2]
[365187700,1749525071327,-490.0,0.00016931,2]
[365187701,1749525071336,-490.0,0.00016931,2]
[365187702,1749525071346,-490.0,0.00016931,2]
[365187703,1749525071355,-490.0,0.00016931,2]
[365187704,1749525071365,-490.0,0.00016931,2]
[365187705,1749525071375,-490.0,0.00016931,2]
[365187706,1749525071385,-490.0,0.00016931,2]
[365187707,1749525071395,-490.0,0.00016931,2]
[365187708,1749525071405,-490.0,0.00016931,2]
[365187709,1749525071415,-190.767625,0.00016931,2]
[365187710,1749525071424,-490.0,0.00016931,2]
[365187711,1749525071433,-874.46,0.00016931,2]
[365187712,1749525071443,-490.0,0.00016931,2]
[365187713,1749525071452,-490.0,0.00016931,2]
[365187714,1749525071462,-490.0,0.00016931,2]
[365187715,1749525071472,-494.38,0.00016931,2]
[365187716,1749525071481,-1615.08,0.00016931,2]
[365187717,1749525071491,-490.0,0.00016931,2]
[365187718,1749525071501,-490.0,0.00016931,2]
[365187719,1749525071511,-490.0,0.00016931,2]
[365187720,1749525071520,-490.0,0.00016931,2]
[365187721,1749525071531,-529.84,0.00016931,2]
[365187722,1749525071541,-490.0,0.00016931,2]
[365187723,1749525071551,-1075.4,0.00016931,2]
[365187724,1749525071560,-655.8,0.00016931,2]
[365187725,1749525071570,-490.0,0.00016931,2]
[365187726,1749525071581,-485.65110002,0.00016931,2]
[365187727,1749525071594,-449.61889054,0.00016931,2]
[365187728,1749525071604,-553.14,0.00016931,2]
[365187729,1749525071615,-709.07,0.00016931,2]
[365187730,1749525071625,-1655.79,0.00016931,2]
[365187731,1749525071635,-490.0,0.00016931,2]
[365187732,1749525071645,-2379.12,0.00016931,2]
[365187733,1749525071654,-456.33266875,0.00016931,2]
[365187734,1749525071664,-490.0,0.00016931,2]
[365187735,1749525071674,-490.0,0.00016931,2]
[365187736,1749525071684,-490.0,0.00016931,2]
[365187737,1749525071694,-637.09,0.00016931,2]
[365187738,1749525071703,-490.0,0.00016931,2]
[365187739,1749525071712,-1068.67,0.00016931,2]
[365187740,1749525071722,-490.0,0.00016931,2]
[365187741,1749525071731,-490.0,0.00016931,2]
[365187742,1749525071740,-490.0,0.00016931,2]
[365187743,1749525071750,-490.0,0.00016931,2]
[365187744,1749525071760,-490.0,0.00016931,2]
[365187745,1749525071770,-927.29,0.00016931,2]
[365187746,1749525071779,-490.0,0.00016931,2]
[365187747,1749525071788,-739.16,0.00016931,2]
[365187748,1749525071799,-848.47,0.00016931,2]
[365187749,1749525071808,-490.0,0.00016931,2]
[365187750,1749525071818,-490.0,0.00016931,2]
[365187751,1749525071828,-490.0,0.00016931,2]
[365187752,1749525071837,-490.0,0.00016931,2]
[365187753,1749525071847,-490.0,0.00016931,2]
[365187754,1749525071856,-490.0,0.00016931,2]
[365187755,1749525071866,-1641.81,0.00016931,2]
[365187756,1749525071875,-490.0,0.00016931,2]
[365187757,1749525071884,-490.0,0.00016931,2]
[365187758,1749525071893,-2238.41,0.00016931,2]
[365187759,1749525071903,-490.0,0.00016931,2]
[365187760,1749525071912,-490.0,0.00016931,2]
[365187761,1749525071922,-659.57,0.00016931,2]
[365187762,1749525071931,-490.0,0.00016931,2]
[365187763,1749525071940,-490.0,0.00016931,2]
[365187764,1749525071950,-1065.02,0.00016931,2]
[365187765,1749525071959,-1338.38,0.00016931,2]
[365187766,1749525071968,-490.0,0.00016931,2]
[365187767,1749525071978,-490.0,0.00016931,2]
[365187768,1749525071987,-490.0,0.00016931,2]
[365187769,1749525071997,-490.0,0.00016931,2]
[365187770,1749525072006,-490.0,0.00016931,2]
[365187771,1749525072015,-490.0,0.00016931,2]
[365187772,1749525072025,-490.0,0.00016931,2]
[365187773,1749525072035,-490.0,0.00016931,2]
[365187774,1749525072045,-490.0,0.00016931,2]
[365187775,1749525072054,-150.0,0.00016931,2]
[365187776,1749525072064,-1000.0,0.00016931,2]
[365187777,1749525072075,-897.68,0.00016931,2]
[365187778,1749525072084,-490.0,0.00016931,2]
[365187779,1749525072093,-490.0,0.00016931,2]
[365187780,1749525072103,-517.29,0.00016931,2]
[365187781,1749525072112,-490.0,0.00016931,2]
[365187782,1749525072123,-639.59,0.00016931,2]
[365187783,1749525072133,-490.0,0.00016931,2]
[365187784,1749525072142,-490.0,0.00016931,2]
[365187785,1749525072151,-490.0,0.00016931,2]
[365187786,1749525072161,-490.0,0.00016931,2]
[365187787,1749525072170,-490.0,0.00016931,2]
[365187788,1749525072179,-1634.79,0.00016931,2]
[365187789,1749525072189,-490.0,0.00016931,2]
[365187790,1749525072198,-795.78,0.00016931,2]
[365187791,1749525072207,-490.0,0.00016931,2]
[365187792,1749525072216,-490.0,0.00016931,2]
[365187793,1749525072226,-490.0,0.00016931,2]
[365187794,1749525072235,-490.0,0.00016931,2]
[365187795,1749525072244,-499.37,0.00016931,2]
[365187796,1749525072253,-1983.09,0.00016931,2]
[365187797,1749525072262,-490.0,0.00016931,2]
[365187798,1749525072272,-490.0,0.00016931,2]
[365187799,1749525072281,-490.0,0.00016931,2]
[365187800,1749525072291,-1184.87,0.00016931,2]
[365187801,1749525072300,-490.0,0.00016931,2]
[365187802,1749525072310,-42056.12,0.00016931,2]
[365187803,1749525072320,-490.0,0.00016931,2]
[365187804,1749525072329,-490.0,0.00016931,2]
[365187805,1749525072339,-490.0,0.00016931,2]
[365187806,1749525072348,-490.0,0.00016931,2]
[365187807,1749525072358,-419.27323895,0.00016931,2]
[365187808,1749525072367,-490.0,0.00016931,2]
[365187809,1749525072377,-490.0,0.00016931,2]
[365187810,1749525072386,-490.0,0.00016931,2]
[365187811,1749525072395,-490.0,0.00016931,2]
[365187812,1749525072405,-605.98,0.00016931,2]
[365187813,1749525072414,-491.03,0.00016931,2]
[365187814,1749525072423,-497.21,0.00016931,2]
[365187815,1749525072433,-611.73,0.00016931,2]
[365187816,1749525072442,-450.0,0.00016931,2]
[365187817,1749525072452,-165.509118,0.00016931,2]
[365187818,1749525072462,-730.26,0.00016931,2]
[365187819,1749525072472,-1437.03,0.00016931,2]
[365187820,1749525072482,-490.0,0.00016931,2]
[365187821,1749525072491,-4445.982985,0.00016931,2]
[365187822,1749525072501,-490.0,0.00016931,2]
[365187823,1749525072510,-490.0,0.00016931,2]
[365187824,1749525072520,-490.0,0.00016931,2]
[365187825,1749525072529,-450.0,0.00016931,2]
[365187826,1749525072539,-454.60950371,0.00016931,2]
[365187827,1749525072549,-835.66,0.00016931,2]
[365187828,1749525072558,-150.0,0.00016932,2]
[365187829,1749525072568,-150.0,0.00016932,2]
[365187830,1749525072578,-1000.0,0.00016933,2]
[365187831,1749525072590,-150.0,0.00016936,2]
[365187832,1749525072600,-1000.0,0.00016936,2]
[365187833,1749525072610,-1000.0,0.00016937,2]
[365187834,1749525072620,-150.0,0.00016945,2]
[365187835,1749525072631,-579.01202907,0.00016948,2]
[365187836,1749525072641,-150.0,0.00016952,2]
[365187837,1749525072651,-379.3962566,0.00016955,2]
[365187838,1749525072661,-152.20748169,0.00016956,2]
[365187839,1749525072671,-364.18107276,0.00016959,2]
[365187840,1749525072680,-1000.0,0.00016959,2]
[365187841,1749525072690,-150.0,0.00016959,2]
[365187842,1749525072700,-150.0,0.00016962,2]
[365187843,1749525072709,-150.0,0.00016964,2]
[365187844,1749525072718,-1000.0,0.00016964,2]
[365187845,1749525072728,-150.0,0.00016969,2]
[365187846,1749525072737,-150.0,0.00016972,2]
[365187847,1749525072747,-502.41702846,0.00016973,2]
[365187848,1749525072756,-500.0,0.00016973,2]
[365187849,1749525072765,-500.0,0.00016973,2]
[365187850,1749525072775,-500.0,0.00016973,2]
[365187851,1749525072784,-452.00655032,0.00016973,2]
[365187852,1749525072793,-161.40784034,0.00016973,2]
[365187853,1749525072804,-163.04973825,0.00016973,2]
[365187854,1749525072813,-500.0,0.00016973,2]
[365187855,1749525072823,-150.0,0.00016973,2]
[365187856,1749525072832,-1000.0,0.00016977,2]
[365187857,1749525072841,-1000.0,0.00016978,2]
[365187858,1749525072851,-2241.0,0.0001698,2]
[365187859,1749525072860,-150.0,0.00016982,2]
[365187860,1749525072870,-151.71384899,0.00016985,2]
[365187861,1749525072880,-150.0,0.00016985,2]
[365187862,1749525072889,-3000.0,0.0001699,2]
[365187863,1749525072898,-1934.28,0.00017,2]
[365187864,1749525072908,-150.0,0.00017016,2]
[365187865,1749525072917,-1159.0,0.00017045,2]
[365187866,1749525072926,-169.656,0.00017045,2]
[365187867,1749525072936,-298.911,0.00017045,2]
[365187868,1749525072945,-853.0,0.00017045,2]
[365187869,1749525072954,-7064.0,0.00017045,2]
[365187870,1749525072963,-295.0,0.0001705,2]
[365187871,1749525072973,-2241.0,0.00017057,2]
[365187872,1749525072982,-4085.0,0.00017064,2]
[365187873,1749525072992,-986.31,0.00017064,2]
[365187874,1749525073001,-2241.0,0.00017071,2]
[365187875,1749525073010,-2241.0,0.00017075,2]
[365187876,1749525073020,-950.89,0.00017094,2]
[365187877,1749525073030,-664.92,0.00017094,2]
[365187878,1749525073039,-300.0,0.00017094,2]
[365187879,1749525073048,-490.0,0.00017095,2]
[365187880,1749525073057,-490.0,0.00017095,2]
[365187881,1749525073067,-490.0,0.00017095,2]
[365187882,1749525073076,-490.0,0.00017095,2]
[365187883,1749525073085,-443.95808879,0.00017095,2]
[365187884,1749525073094,-490.0,0.00017095,2]
[365187885,1749525073104,-420.0,0.00017095,2]
[365187886,1749525073113,-527.05,0.00017095,2]
[365187887,1749525073122,-436.64900523,0.00017095,2]
[365187888,1749525073132,-433.03058202,0.00017095,2]
[365187889,1749525073141,-578.91896473,0.00017095,2]
[365187890,1749525073150,-434.13394668,0.00017095,2]
[365187891,1749525073159,-490.0,0.00017095,2]
[365187892,1749525073169,-490.0,0.00017095,2]
[365187893,1749525073179,-490.0,0.00017095,2]
[365187894,1749525073188,-446.69536324,0.00017095,2]
[365187895,1749525073198,-490.0,0.00017095,2]
[365187896,1749525073207,-490.0,0.00017095,2]
[365187897,1749525073216,-490.0,0.00017095,2]
[365187898,1749525073226,-503.0,0.00017095,2]
[365187899,1749525073235,-706.89,0.00017095,2]
[365187900,1749525073244,-490.0,0.00017095,2]
[365187901,1749525073254,-490.0,0.00017095,2]
[365187902,1749525073263,-490.0,0.00017095,2]
[365187903,1749525073273,-665.87,0.00017095,2]
[365187904,1749525073282,-490.0,0.00017095,2]
[365187905,1749525073292,-490.0,0.00017095,2]
[365187906,1749525073302,-490.0,0.00017095,2]
[365187907,1749525073311,-504.72,0.00017095,2]
[365187908,1749525073320,-579.14,0.00017095,2]
[365187909,1749525073329,-433.22430792,0.00017095,2]
[365187910,1749525073339,-490.0,0.00017095,2]
[365187911,1749525073350,-490.0,0.00017095,2]
[365187912,1749525073360,-490.0,0.00017095,2]
[365187913,1749525073370,-490.0,0.00017095,2]
[365187914,1749525073379,-490.0,0.00017095,2]
[365187915,1749525073389,-490.0,0.00017095,2]
[365187916,1749525073399,-490.0,0.00017095,2]
[365187917,1749525073409,-490.0,0.00017095,2]
[365187918,1749525073419,-665.32,0.00017095,2]
[365187919,1749525073428,-490.0,0.00017095,2]
[365187920,1749525073438,-490.0,0.00017095,2]
[365187921,1749525073448,-490.0,0.00017095,2]
[365187922,1749525073458,-490.0,0.00017095,2]
[365187923,1749525073468,-490.0,0.00017095,2]
[365187924,1749525073479,-307.63980729,0.00017095,2]
[365187925,1749525073488,-518.47453652,0.00017095,2]
[365187926,1749525073499,-235.48687027,0.00017095,2]
[365187927,1749525073509,-490.0,0.00017095,2]
[365187928,1749525073519,-247.90185628,0.00017095,2]
[365187929,1749525073529,-490.0,0.00017095,2]
[365187930,1749525073538,-490.0,0.00017095,2]
[365187931,1749525073549,-490.0,0.00017095,2]
[365187932,1749525073559,-490.0,0.00017095,2]
[365187933,1749525073569,-490.0,0.00017095,2]
[365187934,1749525073579,-490.0,0.00017095,2]
[365187935,1749525073590,-490.0,0.00017095,2]
[365187936,1749525073600,-490.0,0.00017095,2]
[365187937,1749525073610,-490.0,0.00017095,2]
[365187938,1749525073620,-591.94895717,0.00017095,2]
[365187939,1749525073629,-490.0,0.00017095,2]
[365187940,1749525073640,-644.96,0.00017095,2]
[365187941,1749525073650,-490.0,0.00017095,2]
[365187942,1749525073660,-278.31368212,0.00017095,2]
[365187943,1749525073671,-151.44815314,0.00017095,2]
[365187944,1749525073682,-490.0,0.00017095,2]
[365187945,1749525073692,-490.0,0.00017095,2]